Cogmind - Beta 14 @@@ ROGUE MODE // 2024.12.21 @ 18:18:27 Player: blackdogzx Result: Destroyed by S-10 Pest with Light Assault Rifle Performance ------------- Evolutions (1) 500 Regions Visited (2) 400 Robots Destroyed (20) 100 Value Destroyed (455) 455 Prototype IDs (0) 0 Alien Tech Used (0) 0 Bonus (0) 0 TOTAL SCORE: 1455 Bonus ------- None Cogmind --------- Core Integrity 0/400 Matter 274/300 Energy 100/100 System Corruption 0% Temperature Cool (0) Movement Core (100) Ox1 Location -9/Materials Parts ------- > --- POWER (1) -------- (None) > --- PROPULSION (2) --- (None) > --- UTILITY (4) ------ Small Storage Unit > --- WEAPON (2) ------- (None) > --- INVENTORY (8) ---- Sensor Array Improved Targeting Computer Power Shielding Utility Shielding Maul Peak State ------------ > --- POWER ------------ Ion Engine > --- PROPULSION ------- Aluminum Leg Aluminum Leg > --- UTILITY ---------- Small Storage Unit Sensor Array Improved Targeting Computer Utility Shielding > --- WEAPON ----------- Heavy Assault Rifle EMP Blaster > --- INVENTORY -------- Ion Engine Sensor Array Improved Targeting Computer Power Shielding Light Assault Rifle [Rating: 12] Favorites ----------- Power Ion Engine Engine Ion Engine Propulsion Aluminum Leg Leg Aluminum Leg Utility Small Storage Unit Device Sensor Array Storage Small Storage Unit Processor Improved Targeting Computer Protection Utility Shielding Weapon EMP Blaster Energy Gun EM Pulse Gun Ballistic Gun Heavy Assault Rifle Launcher EMP Blaster Build | -11 -10 -9 ------- Run | Yrd Mat Mat Slots Evolved 2 | . . 2 Power . | . . . Propulsion . | . . . Utility 2 | . . 2 Weapon . | . . . Parts Attached 18 | 6 3 9 Power 2 | 1 . 1 Engine 2 | 1 . 1 Core . | . . . Reactor . | . . . Propulsion 3 | 2 . 1 Treads . | . . . Leg 3 | 2 . 1 Wheel . | . . . Hover . | . . . Flight . | . . . Utility 7 | 1 2 4 Device 2 | . . 2 Storage 1 | 1 . . Processor 1 | . . 1 Hackware . | . . . Protection 3 | . 2 1 Artifact . | . . . Weapon 6 | 2 1 3 Energy Gun 1 | 1 . . Energy Cannon . | . . . Ballistic Gun 3 | 1 . 2 Ballistic Cannon . | . . . Launcher 2 | . 1 1 Special Weapon . | . . . Impact Weapon . | . . . Slashing Weapon . | . . . Piercing Weapon . | . . . Special Melee Weapon . | . . . Unidentified Prototypes . | . . . Parts Lost 12 | . . 12 Power 2 | . . 2 Propulsion 3 | . . 3 Utility 3 | . . 3 Weapon 4 | . . 4 Highest Loss Streak 6 | . . 6 To Critical Strikes . | . . . Average Slot Usage (%) 91 | . 98 87 Engine 11 | . 14 10 Leg 20 | . 28 15 Device 6 | . . 10 Storage 12 | . 14 11 Processor 6 | . . 10 Protection 10 | . 12 8 Energy Gun 4 | . 11 . Ballistic Gun 11 | . 14 10 Launcher 6 | . 2 9 Peak Build Rating 12 | 6 8 12 Average Rating 9 | 4 7 10 On Entrance 4 | . 6 8 Naked Turns . | . . . Heaviest Build 21 | 13 16 21 Greatest Support 20 | 20 20 20 Greatest Overweight (x) 2 | 2 . 2 Average Overweight (x) . | . . . Largest Inventory Capacity 8 | 8 8 8 Average Capacity 7 | 7 8 8 Most Carried 8 | 1 6 8 Average Carried 4 | . 2 6 Final Capacity 8 | 8 8 8 Final Carried 5 | 1 5 5 Class Distribution -------------------- 100% | Mutant Dominant Class ---------------- Mutant | -10/Materials Mutant | -9/Materials Resources | -11 -10 -9 ----------- Run | Yrd Mat Mat Matter Collected 440 | 166 156 118 Remotely . | . . . Salvage Created 628 | . 208 420 Parts 50 | . 22 28 Haulers Intercepted . | . . . Recyclers Shooed 1 | . 1 . Parts Field Recycled . | . . . Retrieved Matter . | . . . Parts Self-Destructed . | . . . Prevented . | . . . Kills | -11 -10 -9 ------- Run | Yrd Mat Mat Combat Hostiles Destroyed 14 | . 8 6 Guns 8 | . 5 3 AOE 6 | . 3 3 Classes Destroyed 7 | . 3 4 Builder 1 | . . 1 Tunneler 1 | . . 1 Recycler 1 | . . 1 Watcher 3 | . 1 2 Swarmer 6 | . 6 . Grunt 7 | . 2 5 Sentry 1 | . . 1 Best Kill Streak 7 | . 7 3 Combat Bots Only 6 | . 6 3 Max Kills in Single Turn 2 | . 2 2 Gunslinging . | . . . Exploded 2 | . 2 1 Melee . | . . . Uniques/NPCs Destroyed . | . . . Combat | -11 -10 -9 -------- Run | Yrd Mat Mat Hostile Shots Fired 190 | . 31 159 Missed 69 | . 9 60 Damage Taken 1492 | . 218 1274 Core 421 | . 17 404 Absorbed by Shields . | . . . Redirected to Shielding 12 | . 1 11 Core Remaining (%) 96 | 100 93 . Volleys Fired 37 | . 17 20 Largest 2 | . 2 2 Hottest 60 | . 60 56 Shots Fired 64 | . 34 30 Gun 49 | . 29 20 Cannon . | . . . Launcher 15 | . 5 10 Special . | . . . Kinetic 37 | . 17 20 Thermal . | . . . Explosive 2 | . . 2 Electromagnetic 25 | . 17 8 Robot Hit Streak 5 | . 4 5 Robot Miss Streak 2 | . 2 2 Penetration Max . | . . . Secondary Targets 1 | . 1 . Max Gunslinging Chain 1 | . 1 . Shots Hit Robots 36 | . 17 19 Core Hits 32 | . 15 17 Critical Kills 1 | . . 1 Critical Parts Destroyed . | . . . Critical Strikes 1 | . . 1 Destroy 1 | . . 1 Melee Attacks . | . . . Impact . | . . . Slashing . | . . . Piercing . | . . . Sneak Attacks . | . . . Combat Hostiles . | . . . Follow-up Attacks . | . . . Damage Inflicted 944 | . 416 528 Guns 352 | . 165 187 Cannons . | . . . Explosions 560 | . 243 317 Melee . | . . . Ramming 32 | . 8 24 Kinetic 262 | . 75 187 Thermal 51 | . 51 . Explosive 116 | . . 116 Electromagnetic 483 | . 282 201 Impact . | . . . Slashing . | . . . Piercing . | . . . Highest Corruption . | . . . Average Corruption . | . . . Corruption Purged . | . . . Corruption Blocked . | . . . Overload Shots . | . . . Overflow Damage 17 | . . 17 Projectiles . | . . . Explosions 17 | . . 17 Melee . | . . . Knockbacks . | . . . Impact . | . . . Kinetic . | . . . Secondary . | . . . Self-Inflicted Damage 43 | . 12 31 Shots 3 | . 1 2 Rammed . | . . . Targets Rammed 6 | . 2 4 Kicked 6 | . 2 4 Crushed . | . . . Highest Temperature 48 | . 48 14 Average Temperature 17 | . 20 4 Received Heat Transfer 474 | . 48 426 Siege Activations . | . . . Robots Corrupted . | . . . Combat Hostiles . | . . . Parts Fried 1 | . 1 . Impact Corruptions . | . . . Robots Melted . | . . . Combat Hostiles . | . . . Parts Melted . | . . . Heat Transferred 100 | . 100 . Parts Sabotaged . | . . . Parts Stolen . | . . . Parts Stripped . | . . . Power Chain Reactions 2 | . 1 1 Alert | -11 -10 -9 ------- Run | Yrd Mat Mat Peak Influence 257 | . 244 257 Initial 18 | . . 18 Average 103 | . 131 96 Maximum Alert Level 1 | . 1 1 Low Security (%) 90 | 100 89 90 Level 1 9 | . 10 9 Level 2 . | . . . Level 3 . | . . . Level 4 . | . . . Level 5 . | . . . High Security . | . . . Max Security . | . . . Squads Dispatched 1 | . . 1 Investigation . | . . . Extermination . | . . . Reinforcement 1 | . . 1 Assault . | . . . Garrison . | . . . Intercept . | . . . Searches Triggered . | . . . Construction Impeded . | . . . Haulers Reinforced . | . . . Active Scanning Responses . | . . . Cargo Convoy Interrupts . | . . . Stealth | -11 -10 -9 --------- Run | Yrd Mat Mat Distress Signals 1 | . . 1 Communications Jammed . | . . . Distress Signals . | . . . Times Spotted 31 | . 10 21 Peak Tracking Total 10 | . 3 10 Tactical Retreats 2 | . . 2 Traps | -11 -10 -9 ------- Run | Yrd Mat Mat Traps Triggered . | . . . Indirectly . | . . . Trap Hack Attempts . | . . . Triggered . | . . . Disarmed . | . . . Reprogrammed . | . . . Reused . | . . . Traps Extracted . | . . . Installed . | . . . Triggered . | . . . Machines | -11 -10 -9 ---------- Run | Yrd Mat Mat Machines Disabled 3 | . 1 2 Max in Single Turn 1 | . 1 1 Machines Repaired . | . . . Machines Dismantled . | . . . Machines Sabotaged . | . . . Overloaded Fab Kills . | . . . Hacking | -11 -10 -9 --------- Run | Yrd Mat Mat Machines Accessed 3 | . 3 . Terminals 3 | . 3 . Fabricators . | . . . Repair Stations . | . . . Recycling Units . | . . . Scanalyzers . | . . . Garrison Access . | . . . Total Hacks 8 | . 8 . Successful 7 | . 7 . Failed 1 | . 1 . Catastrophic . | . . . Database Lockouts . | . . . Manual . | . . . Terminals 8 | . 8 . Fabricators . | . . . Repair Stations . | . . . Recycling Units . | . . . Scanalyzers . | . . . Garrison Access . | . . . Terminal Hacks 7 | . 7 . Record 6 | . 6 . Emergency Access Points 1 | . 1 . Fabricator Hacks . | . . . Repair Station Hacks . | . . . Recycling Unit Hacks . | . . . Scanalyzer . | . . . Garrison Access Hacks . | . . . Unauthorized Hacks . | . . . Terminals . | . . . Fabricators . | . . . Repair Stations . | . . . Recycling Units . | . . . Scanalyzers . | . . . Garrison Access . | . . . Data Cores Recovered . | . . . Used . | . . . Hacking Detections 2 | . 2 . Full Trace Events . | . . . Feedback Events . | . . . Feedback Blocked . | . . . Robot Schematics Acquired . | . . . Robots Built . | . . . Authchips . | . . . Time . | . . . Total Robot Build Rating . | . . . Part Schematics Acquired . | . . . Parts Built . | . . . Authchips . | . . . Time . | . . . Total Part Build Rating . | . . . Parts Repaired . | . . . Time . | . . . Parts Recycled . | . . . Recycled Matter . | . . . Retrieved Matter . | . . . Retrieved Components . | . . . Parts Scanalyzed . | . . . Part Schematics Acquired . | . . . Parts Damaged . | . . . Bothacking | -11 -10 -9 ------------ Run | Yrd Mat Mat Used RIF Installer . | . . . Robots Hacked . | . . . Non-combat . | . . . Combat . | . . . Robot Hacks Applied . | . . . Relay Couplers Released . | . . . Fabnet Peak Effective % . | . . . Robots Rewired . | . . . Allies Hacked . | . . . Hacks Repelled . | . . . Allies | -11 -10 -9 -------- Run | Yrd Mat Mat Total Allies . | . . . Largest Group . | . . . Highest-Rated Group . | . . . Highest-Rated Ally . | . . . Total Orders . | . . . Ally Attacks . | . . . Total Damage . | . . . Kills . | . . . Allies Corrupted . | . . . Allies Melted . | . . . Intel | -11 -10 -9 ------- Run | Yrd Mat Mat Robot Analysis Total . | . . . Derelict Logs Recovered . | . . . Drone Launches . | . . . Drone Recoveries . | . . . Exploration | -11 -10 -9 ------------- Run | Yrd Mat Mat Turns Passed 1153 | 58 401 694 Spaces Moved 661 | 38 249 374 Core 12 | 5 . 7 Treads . | . . . Legs 649 | 33 249 367 Wheels . | . . . Hover . | . . . Flight . | . . . Fastest Speed 50 | 50 120 100 Average Speed 138 | 118 120 153 Slowest Speed 260 | 150 120 260 Overloaded Moves . | . . . Propulsion Burnouts . | . . . Robots Hopped . | . . . Cave-ins Triggered . | . . . Exploration Rate (%) 32 | 3 50 45 Regions Visited 2 Branch Regions . Pre-discovered Areas . | . . . Known Exits Taken . | . . . Unknown Exits Taken 2 | 1 1 . Scrap Searched . | . . . Spaces Dug . | . . . Terrain Destroyed 14 | . 2 12 Melee . | . . . Projectile . | . . . AOE 14 | . 2 12 Terrain Rammed . | . . . Walls Destroyed . | . . . Machines Disabled . | . . . Actions | -11 -10 -9 --------- Run | Yrd Mat Mat Total 828 | 48 320 460 Wait 95 | 4 43 48 Move 659 | 37 248 374 Hop . | . . . Pick Up 9 | 1 4 4 Fast Attach 10 | 6 2 2 Attach 6 | . 1 5 Detach 3 | . 2 1 Swap 2 | . . 2 Drop 1 | . 1 . Fire 37 | . 17 20 Melee . | . . . Ram . | . . . Kick 6 | . 2 4 Crush . | . . . Escape Stasis . | . . . Rewire . | . . . Trap . | . . . Miscellaneous . | . . . Route ------- -11/Scrapyard -10/Materials (discovered 2 exits: [*Mat] / [*Min]) -9/Materials (discovered 1 exit: [*Min]) History --------- Turn | Location | Event 11 | -11/Scrapyard | Discovered new exit (range 15) 59 | -11/Scrapyard | Entered Materials 283 | -10/Materials | Discovered new exit (range 12) 304 | -10/Materials | Build established: Mutant 357 | -10/Materials | Discovered new exit (range 10) 460 | -10/Materials | Entered another Materials area 460 | -9/Materials | Evolved 2 slots: Utility x2 1064 | -9/Materials | Discovered new exit (range 5) 1074 | -9/Materials | Lost 4 parts (1p1u2w) 1137 | -9/Materials | Core integrity fell below 50% 1152 | -9/Materials | Core integrity fell below 20% 1154 | -9/Materials | Destroyed by S-10 Pest with Light Assault Rifle Last Messages --------------- 01043_ Hvy. Assault Rifle destroyed. 01043_ U-05 Engineer builds a Door. 01061_ Acquired Maul. 01064_ EXIT=FOUND 01112_ Rocket Launcher destroyed. 01116_ K-01 Serf collects debris. 01119_ U-05 Engineer lays Concrete. 01121_ K-01 Serf collects debris. 01122_ U-05 Engineer lays Concrete. 01125_ K-01 Serf collects debris. 01125_ U-05 Engineer lays Concrete. 01127_ Sensor Array destroyed. 01127_ Critical hit (Burn: +37). 01127_ U-05 Engineer lays Concrete. 01130_ Lgt. Assault Rifle destroyed. 01136_ Critical hit (Burn: +37). 01145_ Ion Engine destroyed. 01146_ Aluminum Leg destroyed. 01153_ W-16 Scout sends out distress signal. 01153_ Imp. Targeting Computer destroyed. Map ----- +----------------------------------------------------+ | ???????????????????????????????????# #??# | | ???????????????????????????????????# %#??#+###### | | ?????????????????????????????????### % #### ##???? | | ?????????????????????????????????# #???? | | ?????????????????????????????????# #???? | | ?????????????????????????????????# """ #???? | | ?????????????????????????????????# """ ###### | | ?????????????????????????????????# """ # | | ??????????????????????????????????# | | ??????????????????????????????????# < | | ??????????????????????????????? + """ | | ?????????????????????????????? # """ # | | ??????????????????????????????????# """ # "!"! | | ??????????????????????????????????# #""!"! | | ??????????????????????????????????# ! ###### | | ??????????????????????????????????# | | ??????????????????????????????????# | | ?????????????????######+########### t | | ????????????????# | | ????????????????+ ^ | | ????????????????? | | ????????????????????????## s s ######### | | ?????????????????????????# s #???????? | | ?????????????????????????# #???????? | | ?????????????????????##### #???????? | | ?????????????????????#// @ #???????? | | ?????????????????????#// ?????? | | ?????????????????????#!! ????? | | ?????????????????????#!! ???? | | ?????????????????????#!! g #??? | | ?????????????????????#!! g #??? | | ?????????????????????##### #??? | | ?????????????????????????# ???? | | ????????????????????????? w ????? | | ????????????????????????? ###"T"#### ?????? | | ???????????????????????? #??"""#???####???????? | | ????????????????????????#####????????????????????? | | ?????????????????????????????????????????????????? | | ?????????????????????????????????????????????????? | | ?????????????????????????????????????????????????? | | ?????????????????????????????????????????????????? | | ?????????????????????????????????????????????????? | | ?????????????????????????????????????????????????? | | ?????????????????????????????????????????????????? | | ?????????????????????????????????????????????????? | | ?????????????????????????????????????????????????? | | ?????????????????????????????????????????????????? | | ?????????????????????????????????????????????????? | | ?????????????????????????????????????????????????? | | ?????????????????????????????????????????????????? | +----------------------------------------------------+ Best States ------------- Heat Dissipation 28 Energy Generation 10 Energy Capacity 250 Matter Stores 300 Matter Capacity 300 Sight Range 16 Robot Scan Range 14 Terrain Scan Density 10 Armor Coverage 150 Power Shielding 33 Utility Shielding 33 Evasion (%) 55 Targeting Accuracy 6 Item Schematics ----------------- None Robot Schematics ------------------ None Fabricated ------------ Nothing Alien Tech Used ----------------- None Achievements -------------- None Challenges ------------ None Game ------ Seed PotentialCatalystMallet Manual? 0 Play Time 00:17:33 Cumulative 20.7 hours Start 2024.12.21 @ 18:03:44 End 2024.12.21 @ 18:18:27 Sessions 1 Manual Loads 0 Difficulty Rogue Special Mode None Game No. 30 Rogue 27 Adventurer 3 Explorer 0 Win Type - Total 0 Types 0/0/0/0/0/0/0/0/0 Lore% 9 Gallery% 19 Achievement% 15 Wizard Run 0 Options --------- Layout 1 ASCII 0 Keyboard 1 Movement Numpad Keybinds 0 Fullscreen 1 Font 24/Smallcaps Map View 50x35 Zoom Use 0% Tactical HUD 1 Map Filters NONE Filters NONE Steam 1 RUN: 37fafe59-a78e-4d2c-9879-ff6130307413